bitfinex/quotes_SOLUSD_20260108
["timestamp","ask_amount","ask_price","bid_price","bid_amount"]
[1767913208218,0.3415407,138.87,138.82,0.71737629]
[1767913208928,7.20149791,138.86,138.82,0.71737629]
[1767913209227,7.20149791,138.86,138.82,4.04016539]
[1767913210921,0.099,138.87,138.82,4.04016539]
[1767913211218,0.099,138.87,138.82,0.71737629]
[1767913214015,0.34396586,138.88,138.83,0.70451034]
[1767913214227,0.628289,138.88,138.83,0.70451034]
[1767913214433,0.10144966,138.87,138.83,0.70451034]
[1767913214733,0.10144966,138.87,138.82,0.70451034]
[1767913215619,7.20149791,138.86,138.82,0.70451034]
[1767913217243,0.14216157,138.86,138.8,0.70451034]
[1767913217437,0.24116157,138.86,138.8,0.70451034]
[1767913217745,21.56778091,138.86,138.81,0.70451034]
[1767913218040,21.42561934,138.86,138.81,0.70451034]
[1767913219049,21.39561934,138.86,138.81,0.70451034]
[1767913219232,7.20201656,138.85,138.81,0.70451034]
[1767913220145,7.20097933,138.87,138.82,0.70451034]
[1767913220351,35.98453864,138.95,138.87,0.70451034]
[1767913220352,7.19838756,138.92,138.87,0.70451034]
[1767913220645,7.19838756,138.92,138.88,0.70451034]
[1767913220841,0.28432314,138.91,138.88,0.70451034]
[1767913221531,7.7977386,138.91,138.87,3.3227891]
[1767913221840,7.51341546,138.91,138.86,11.22870086]
[1767913222039,7.51341546,138.91,138.86,7.90591176]
[1767913222337,7.51341546,138.91,138.86,11.22870086]
[1767913222546,7.51341546,138.91,138.86,17.15619268]
[1767913222842,16.76369638,138.91,138.86,7.90591176]
[1767913223235,0.31213473,138.89,138.83,0.70451034]
[1767913223427,0.10326248,138.88,138.83,16.45326884]
[1767913223624,9.25028092,138.89,138.83,17.15777918]
[1767913223843,9.25028092,138.89,138.83,7.90749826]
[1767913224051,9.25028092,138.89,138.83,17.15777918]
[1767913224551,0.28432314,138.88,138.83,9.95479126]
[1767913225520,7.20097933,138.87,138.83,9.95479126]
[1767913231053,7.20097933,138.87,138.84,0.70451034]
[1767913234148,7.45502158,138.88,138.84,0.70451034]
[1767913234756,7.55402158,138.88,138.84,0.70451034]
[1767913236544,7.55402158,138.88,138.78,36.02747711]
[1767913236545,0.38556137,138.84,138.79,0.70777542]
[1767913236745,9.25028092,138.84,138.79,0.70777542]
[1767913237258,0.28432314,138.86,138.77,0.70777542]
[1767913237259,9.25028092,138.83,138.77,0.70777542]
[1767913237454,9.25028092,138.83,138.78,0.70777542]
[1767913238652,7.20357297,138.82,138.78,0.70777542]
[1767913239462,7.20326426,138.83,138.78,7.20552149]
[1767913239670,0.24116157,138.85,138.81,0.70777542]
[1767913239965,0.14216157,138.81,138.76,0.70777542]
[1767913240161,9.39244249,138.81,138.76,0.70777542]
[1767913240363,0.14216157,138.8,138.76,0.70777542]
[1767913240765,7.20513005,138.79,138.76,0.70777542]
[1767913242848,0.28432314,138.79,138.76,0.70777542]
[1767913243053,9.53460406,138.79,138.76,0.70777542]
[1767913243274,0.28432314,138.79,138.76,0.70777542]
[1767913243771,9.53460406,138.79,138.76,0.70777542]
[1767913244471,0.28432314,138.79,138.76,0.70777542]
[1767913244769,7.48987095,138.79,138.76,0.70777542]
[1767913246054,3.32663438,138.77,138.74,0.70777542]
[1767913246254,3.32663438,138.77,138.72,7.3086317]
[1767913246255,3.32663438,138.77,138.73,0.70777542]
[1767913247161,0.28432314,138.77,138.73,0.70777542]
[1767913247364,3.7916599,138.77,138.73,0.70777542]
[1767913249175,0.09983336,138.76,138.72,0.1]
[1767913249371,3.50814537,138.75,138.72,0.1]
[1767913250482,3.32663438,138.75,138.72,0.80777542]
[1767913251156,10.53405609,138.75,138.72,0.80777542]
[1767913252187,7.20742171,138.75,138.72,0.80777542]
[1767913253292,0.28432314,138.75,138.72,0.80777542]
[1767913254899,7.49176117,138.75,138.72,0.80777542]
[1767913256410,103.2831778,138.79,138.75,0.70777542]
[1767913256609,7.20585541,138.78,138.75,0.70777542]
[1767913257818,25.21997848,138.78,138.75,0.70777542]
[1767913260318,28.54661286,138.78,138.75,0.70777542]
[1767913261115,0.3841565,138.77,138.73,0.70777542]
[1767913261326,0.18151099,138.76,138.72,0.80777542]
[1767913261613,3.50814537,138.76,138.72,0.80777542]
[1767913262593,7.2072072,138.75,138.72,0.80777542]
[1767913265017,0.28432314,138.74,138.72,0.80777542]
[1767913266401,7.20824623,138.73,138.72,0.80777542]
[1767913266600,7.20824623,138.73,138.72,0.1]
[1767913268703,9.80624579,138.73,138.7,0.1]
[1767913268904,2.13049862,138.7,138.68,0.75718468]
[1767913269307,2.13049862,138.7,138.67,0.1]
[1767913269308,2.13049862,138.69,138.67,0.75718468]
[1767913270308,2.13049862,138.7,138.67,0.75718468]
[1767913270707,7.21032518,138.69,138.67,0.75718468]
[1767913271739,7.20980533,138.7,138.67,0.1]
[1767913272023,2.41482176,138.69,138.67,0.1]
[1767913272912,7.21084511,138.68,138.67,1e-08]
[1767913273110,7.49516825,138.68,138.66,1e-08]
[1767913273313,7.21084511,138.68,138.64,0.1]
[1767913274810,0.67781644,138.73,138.67,2.13049862]
[1767913275010,2.13049862,138.68,138.64,0.1]
[1767913275208,2.39861119,138.68,138.64,0.1]
[1767913275408,2.39861119,138.68,138.64,0.75718468]
[1767913276911,9.6097555,138.68,138.64,0.75718468]
[1767913277330,7.47925688,138.68,138.64,0.75718468]
[1767913277947,0.67781644,138.71,138.66,0.65718468]
[1767913278120,2.39455635,138.68,138.64,0.1]
[1767913278434,0.67781644,138.69,138.64,0.75718468]
[1767913279218,7.21084511,138.68,138.64,0.75718468]
[1767913279734,18.69884467,138.73,138.68,0.65718468]
[1767913279913,0.28432314,138.72,138.69,0.65718468]
[1767913280313,18.69884467,138.73,138.69,2.7876833]
[1767913280816,7.49333845,138.72,138.69,2.7876833]
[1767913282331,7.20901531,138.72,138.69,2.7876833]
[1767913283429,7.20901531,138.72,138.69,0.65718468]
[1767913287539,7.20901531,138.72,138.69,2.7876833]
[1767913287751,7.35063844,138.73,138.7,0.65718468]
[1767913287920,7.20794884,138.74,138.71,0.65718468]
[1767913288121,7.20794884,138.74,138.71,2.7876833]
[1767913289644,7.20794884,138.74,138.71,0.65718468]
[1767913295021,7.88517834,138.75,138.72,0.698665]
[1767913295227,7.88517834,138.75,138.72,2.82916362]
[1767913295744,7.2073619,138.75,138.72,2.82916362]
[1767913295942,7.2073619,138.75,138.73,0.698665]
[1767913296346,7.2073619,138.75,138.72,2.82916362]
[1767913296848,0.28274313,138.78,138.75,0.698665]
[1767913297044,7.85989339,138.79,138.75,2.82916362]
[1767913297553,7.85989339,138.79,138.76,0.698665]
[1767913304849,0.28432314,138.79,138.76,0.698665]
[1767913305046,7.20461095,138.8,138.77,0.698665]
[1767913305246,7.34649688,138.81,138.78,0.698665]
[1767913305459,7.34649688,138.81,138.78,0.61178091]
[1767913306158,0.79692491,138.83,138.78,2.13049862]
[1767913306370,7.20361483,138.82,138.78,2.13049862]
[1767913306663,7.85806995,138.83,138.78,2.13049862]
[1767913306877,7.85806995,138.83,138.79,2.13049862]
[1767913307039,7.85806995,138.83,138.79,2.09738271]
[1767913307455,7.85806995,138.83,138.79,2.79604771]
[1767913307861,7.85806995,138.83,138.79,0.698665]
[1767913308870,7.20330661,138.83,138.8,0.698665]
[1767913309048,7.20330661,138.83,138.8,0.638665]
[1767913309239,7.48706428,138.84,138.8,2.13049862]
[1767913309563,7.34490271,138.84,138.8,9.33497303]
[1767913309738,7.20244795,138.85,138.81,2.13049862]
[1767913311142,7.62977097,138.86,138.82,2.82916362]
[1767913311338,7.62977097,138.86,138.82,2.80201475]
[1767913313672,7.62977097,138.86,138.83,0.698665]
[1767913313847,7.62977097,138.86,138.83,0.638665]
[1767913316150,7.62977097,138.86,138.83,0.518665]
[1767913317650,0.65476334,138.85,138.81,2.13049862]
[1767913318051,7.83484835,138.86,138.81,2.13049862]
[1767913318250,7.83484835,138.86,138.82,0.698665]
[1767913318251,0.93887121,138.85,138.82,0.698665]
[1767913318478,0.63344888,138.84,138.8,0.698665]
[1767913318858,3.04805752,138.85,138.8,0.698665]
[1767913319279,25.86342159,138.84,138.8,0.698665]
[1767913320175,0.28432314,138.83,138.8,0.698665]
[1767913320352,0.91777202,138.83,138.8,0.698665]
[1767913321448,7.85833631,138.82,138.77,2.13049862]
[1767913321653,0.65476334,138.81,138.77,2.13049862]
[1767913322379,7.90033841,138.82,138.77,2.13049862]
[1767913323464,7.90033841,138.82,138.78,0.69734948]
[1767913324787,7.90033841,138.82,138.78,2.8278481]
[1767913325183,7.90033841,138.82,138.79,0.69734948]
[1767913327076,7.20357297,138.82,138.79,2.8278481]
[1767913327488,7.85774347,138.83,138.79,0.69734948]
[1767913327691,7.85774347,138.83,138.79,2.8278481]
[1767913328594,7.85774347,138.83,138.79,4.02151731]
[1767913329588,0.6546591,138.82,138.79,4.02151731]
[1767913331005,0.93898224,138.83,138.79,4.02151731]
[1767913331399,0.93898224,138.83,138.8,0.70799888]
[1767913332507,7.85634244,138.86,138.83,0.70799888]
[1767913332709,7.85634244,138.86,138.83,3.97216671]
[1767913333096,7.85634244,138.86,138.83,3.32416783]
[1767913333415,7.85634244,138.86,138.82,3.32416783]
[1767913334614,7.85634244,138.86,138.82,4.03216671]
[1767913335396,0.6546591,138.85,138.82,4.03216671]
[1767913335596,0.6546591,138.86,138.82,11.23572003]
[1767913338417,7.85616346,138.86,138.82,11.23572003]
[1767913338637,0.6546591,138.86,138.83,3.32416783]
[1767913338822,0.6546591,138.86,138.83,4.03216671]
[1767913339314,0.6546591,138.86,138.83,3.32416783]
[1767913339709,0.6546591,138.86,138.83,4.03216671]
[1767913339907,0.6546591,138.86,138.83,3.32416783]
[1767913340822,0.6546591,138.86,138.83,4.03216671]
[1767913343804,7.85577456,138.87,138.83,4.03216671]
[1767913345422,7.85577456,138.87,138.83,0.70799888]
[1767913345610,7.85577456,138.87,138.83,4.03216671]
[1767913346238,0.2,138.88,138.86,4.03216671]
[1767913346528,0.2,138.88,138.87,3.32416783]
[1767913346711,0.2,138.88,138.86,4.03216671]
[1767913347822,0.2,138.88,138.87,4.03216671]
[1767913349124,1e-08,138.88,138.87,10.52514716]
[1767913349304,7.85323416,138.92,138.87,10.52514716]
[1767913349506,7.85323416,138.92,138.88,3.32416783]
[1767913349824,7.85323416,138.92,138.89,0.70799888]
[1767913350026,0.6546591,138.92,138.89,3.97216671]
[1767913350814,0.6546591,138.92,138.89,3.91216671]
[1767913351317,7.85314046,138.92,138.89,3.85216671]
[1767913353111,0.6546591,138.92,138.89,3.85216671]
[1767913353330,7.86937992,138.93,138.89,3.85216671]
[1767913354527,7.86937992,138.93,138.9,4.01478425]
[1767913354720,0.2,138.96,138.92,4.01478425]
[1767913354917,0.67128878,138.95,138.93,3.32416783]
[1767913355111,0.67128878,138.95,138.92,3.95478425]
[1767913355712,0.67128878,138.95,138.92,3.32416783]
[1767913356210,0.67128878,138.95,138.9,7.19936984]
[1767913356211,0.67128878,138.95,138.91,3.32416783]
[1767913356724,0.67128878,138.95,138.92,3.32416783]
[1767913357037,7.86825477,138.95,138.92,0.69061642]
[1767913358728,7.86825477,138.95,138.92,4.01478425]
[1767913359817,0.67128878,138.95,138.93,0.69061642]
[1767913360027,7.39645836,138.96,138.93,4.01478425]
[1767913360922,7.39645836,138.96,138.93,0.69061642]
[1767913362938,7.39645836,138.96,138.93,4.01478425]
[1767913364127,8.06774714,138.96,138.93,4.01478425]
[1767913364321,8.06774714,138.96,138.93,0.69061642]
[1767913364552,8.06774714,138.96,138.93,0.63061642]
[1767913365838,8.06774714,138.96,138.93,3.95478425]
[1767913366045,0.87128878,138.96,138.93,3.95478425]
[1767913366225,8.06659072,138.98,138.93,7.19781525]
[1767913366425,8.06659072,138.98,138.95,3.32416783]
[1767913367345,8.06659072,138.98,138.95,3.7711074]
[1767913367527,0.2,138.98,138.96,3.32416783]
[1767913368342,7.39540919,138.98,138.95,3.7711074]
[1767913368523,0.67128878,138.96,138.92,3.32416783]
[1767913368720,0.67128878,138.96,138.91,16.9111074]
[1767913368919,3.99545661,138.96,138.92,0.44693957]
[1767913369122,0.67128878,138.95,138.92,0.44693957]
[1767913369642,7.86859491,138.95,138.92,0.44693957]
[1767913371124,21.59912895,138.97,138.91,0.44693957]
[1767913371125,7.8687932,138.94,138.91,0.44693957]
[1767913371330,0.67128878,138.93,138.9,3.32416783]
[1767913371529,0.67128878,138.93,138.9,3.7711074]
[1767913372043,0.67128878,138.93,138.9,0.44693957]
[1767913372844,7.86919148,138.93,138.9,0.44693957]
[1767913374544,0.67128878,138.91,138.87,0.44693957]
[1767913374730,0.67128878,138.89,138.85,0.44693957]
[1767913375042,3.60849097,138.9,138.85,0.44693957]
[1767913375241,0.28432314,138.9,138.85,3.7711074]
[1767913375433,3.60849097,138.9,138.85,0.44693957]
[1767913375635,3.60849097,138.9,138.85,3.7711074]
[1767913376032,3.60849097,138.9,138.85,0.44693957]
[1767913376239,3.32416783,138.89,138.85,0.44693957]
[1767913376631,10.5246062,138.89,138.85,0.44693957]
[1767913377146,7.87172715,138.89,138.85,0.44693957]
[1767913378642,7.87172715,138.89,138.85,3.7711074]
[1767913378950,0.67128878,138.93,138.89,0.69061642]
[1767913379139,0.67128878,138.94,138.9,3.32416783]
[1767913379336,0.67128878,138.94,138.91,3.32416783]
[1767913380055,0.67128878,138.92,138.87,3.32416783]
[1767913380349,0.67128878,138.91,138.87,3.32416783]
[1767913380551,0.67128878,138.93,138.89,3.32416783]
[1767913380738,0.67128878,138.93,138.9,3.32416783]
[1767913382347,0.70781725,138.92,138.87,0.42761193]
[1767913382548,0.70781725,138.91,138.86,16.89177976]
[1767913383052,0.70781725,138.91,138.87,3.75177976]
[1767913383447,0.70781725,138.91,138.82,7.63082869]
[1767913383448,0.70781725,138.88,138.82,7.63082869]
[1767913383673,0.70781725,138.87,138.84,3.32416783]
[1767913383948,7.90743892,138.9,138.86,3.75177976]
[1767913384738,0.70781725,138.88,138.84,3.75177976]
[1767913385061,0.67781726,138.88,138.84,3.75177976]
[1767913385849,7.87861366,138.88,138.84,3.75177976]
[1767913386057,7.2007964,138.88,138.84,3.32416783]
[1767913386353,7.2007964,138.88,138.83,3.78177975]
[1767913386559,0.28432314,138.89,138.84,0.45761192]
[1767913386735,0.28432314,138.88,138.83,3.32416783]
[1767913386935,7.19944559,138.9,138.81,13.14]
[1767913387142,35.98934715,138.93,138.81,13.14]
[1767913387143,17.99644748,138.92,138.87,3.81177974]
[1767913387772,0.28432314,138.91,138.86,3.32416783]
[1767913388854,7.8750472,138.9,138.86,3.32416783]
[1767913389063,7.8750472,138.9,138.87,3.32416783]
[1767913389461,0.9599463,138.93,138.89,3.81177974]
[1767913389765,0.67562316,138.89,138.85,3.81177974]
[1767913389943,0.67562316,138.89,138.86,3.32416783]
[1767913390344,0.67562316,138.89,138.85,3.81177974]
[1767913390544,0.67562316,138.89,138.85,2.61329005]
[1767913390760,20.33752484,138.94,138.89,0.48761191]
[1767913390965,7.87302563,138.94,138.9,2.12567814]
[1767913391460,0.67562316,138.96,138.92,0.48761191]
[1767913391668,0.67562316,138.95,138.9,2.61329005]
[1767913391844,0.67562316,138.94,138.89,0.48761191]
[1767913392039,0.67562316,138.92,138.87,7.68839845]
[1767913392369,0.67562316,138.91,138.87,9.32652576]
[1767913392675,0.67562316,138.93,138.89,2.61329005]
[1767913392964,7.19847354,138.92,138.88,2.12567814]
[1767913393267,7.8740967,138.92,138.89,2.12567814]
[1767913393857,0.67562316,138.92,138.88,2.61329005]
[1767913394549,0.67562316,138.92,138.89,2.12567814]
[1767913396495,49.31800267,138.98,138.92,0.48761191]
[1767913396496,18.66577198,138.97,138.92,0.48761191]
[1767913396772,0.67562316,138.96,138.92,2.61329005]
[1767913397271,0.67562316,138.96,138.92,2.12567814]
[1767913397645,7.87228465,138.96,138.92,2.12567814]
[1767913397864,7.87228465,138.96,138.91,9.81209569]
[1767913399666,0.67562316,138.93,138.89,7.68721701]
[1767913401075,0.67562316,138.93,138.89,9.81289515]
[1767913401245,8.15702684,138.95,138.9,2.12567814]
[1767913401445,0.67562316,138.94,138.9,2.12567814]
[1767913401775,0.67562316,138.94,138.89,9.81289515]
[1767913402886,7.87307355,138.94,138.89,9.81289515]
[1767913403064,0.67562316,138.94,138.9,2.61329005]
[1767913403796,0.67562316,138.93,138.88,2.12567814]
[1767913403961,0.67562316,138.92,138.87,2.61329005]
[1767913404161,0.67562316,138.91,138.87,0.48761191]
[1767913404374,0.67562316,138.91,138.86,7.20116492]
[1767913404591,0.67562316,138.89,138.85,0.48761191]
[1767913404970,7.8758238,138.89,138.85,0.48761191]
[1767913405583,0.67562316,138.89,138.85,9.8152248]
[1767913406092,7.87526902,138.9,138.86,2.12567814]
[1767913406282,7.87526902,138.9,138.86,2.61329005]
[1767913406784,0.67562316,138.92,138.88,2.12567814]
[1767913406983,7.87421199,138.92,138.88,2.12567814]
[1767913407291,7.87421199,138.92,138.87,2.61329005]
[1767913407692,0.67562316,138.91,138.87,2.61329005]
[1767913407874,0.67562316,138.9,138.85,2.12567814]
[1767913408079,0.67562316,138.9,138.85,2.61329005]
[1767913409388,7.1999424,138.89,138.85,0.48761191]
[1767913409588,7.1999424,138.89,138.83,0.48761191]
[1767913409589,0.67562316,138.88,138.83,0.48761191]
[1767913409800,0.67562316,138.88,138.83,2.61329005]
[1767913410592,0.67562316,138.86,138.82,0.48761191]
[1767913410893,0.67562316,138.86,138.83,2.12567814]
[1767913412009,7.20069493,138.88,138.85,2.61329005]
[1767913412170,7.19972942,138.9,138.87,2.61329005]
[1767913412373,0.69487645,138.93,138.88,2.61329005]
[1767913412570,0.97919959,138.93,138.88,2.61329005]
[1767913412878,0.69487645,138.91,138.86,0.48761191]
[1767913413083,0.69487645,138.91,138.85,13.14]
[1767913413278,0.69487645,138.91,138.86,2.12567814]
[1767913413279,0.69487645,138.89,138.86,2.12567814]
[1767913414096,0.69487645,138.89,138.85,2.12567814]
[1767913414294,0.69487645,138.88,138.84,2.12567814]
[1767913414494,0.69487645,138.88,138.83,15.26567814]
[1767913415075,0.69487645,138.88,138.83,22.46868373]
[1767913415270,0.69487645,138.88,138.84,2.12567814]
[1767913415475,7.89552367,138.88,138.84,2.12567814]
[1767913415997,0.69487645,138.87,138.84,2.12567814]
[1767913416999,0.69487645,138.87,138.83,2.12567814]
[1767913418099,7.89637436,138.86,138.83,2.12567814]
[1767913418295,7.86637437,138.86,138.83,2.12567814]
[1767913419483,0.69487645,138.85,138.82,2.12567814]
[1767913419686,0.69487645,138.85,138.8,20.83191775]
[1767913420000,0.69487645,138.85,138.82,2.12567814]
[1767913420979,0.69487645,138.85,138.81,7.20403271]
[1767913421201,0.69487645,138.85,138.82,2.12567814]
[1767913422499,7.89693259,138.85,138.81,7.69164462]
[1767913422697,0.66487646,138.85,138.83,2.12567814]
[1767913423204,7.8669317,138.85,138.83,2.12567814]
[1767913423594,7.8669317,138.85,138.82,2.12567814]
[1767913424394,7.8669317,138.85,138.81,0.48761191]
[1767913424583,7.8669317,138.85,138.82,2.12567814]
[1767913425501,7.83693171,138.85,138.82,2.12567814]
[1767913428482,0.63487647,138.85,138.82,2.12567814]
[1767913429490,7.83690337,138.85,138.82,2.12567814]
[1767913430613,0.63487647,138.85,138.82,2.12567814]
[1767913436917,7.83690402,138.85,138.82,2.12567814]
[1767913437107,7.83690402,138.85,138.81,2.61329005]
[1767913437801,0.69487645,138.83,138.78,0.64761189]
[1767913437999,0.69487645,138.83,138.78,15.91329003]
[1767913438200,0.69487645,138.83,138.79,2.12567814]
[1767913438918,0.69487645,138.81,138.79,2.12567814]
[1767913439498,0.69487645,138.81,138.78,2.22567814]
[1767913442006,0.69487645,138.83,138.8,2.12567814]
[1767913442327,0.69487645,138.83,138.78,15.36567814]
[1767913442328,0.69487645,138.82,138.78,15.36567814]
[1767913442621,0.69487645,138.82,138.78,0.1]
[1767913442622,0.70849227,138.81,138.78,0.1]
[1767913443200,0.70849227,138.8,138.78,0.1]
[1767913444528,0.70849227,138.79,138.75,9.33276459]
[1767913444737,0.70849227,138.79,138.75,22.49276459]
[1767913445039,0.70849227,138.79,138.76,9.33233106]
[1767913445201,0.70849227,138.78,138.73,2.87329003]
[1767913446029,0.70849227,138.78,138.74,7.20767254]
[1767913446331,0.70849227,138.78,138.74,9.33335068]
[1767913446710,0.72083934,138.79,138.74,7.20767254]
[1767913447010,0.72083934,138.78,138.74,2.12567814]
[1767913447919,0.72083934,138.78,138.74,9.33339279]
[1767913449318,7.92650866,138.78,138.74,9.33339279]
[1767913450624,7.92650866,138.78,138.74,10.53420882]
[1767913451252,7.92650866,138.78,138.74,7.20771465]
[1767913451421,0.72083934,138.78,138.74,10.53420882]
[1767913451631,0.72083934,138.78,138.74,7.20771465]
[1767913451822,7.92652748,138.78,138.74,10.53420882]
[1767913452021,0.72083934,138.78,138.74,10.53420882]
[1767913452327,0.72083934,138.78,138.74,11.18182071]
[1767913453439,0.72083934,138.77,138.74,3.97410606]
[1767913453816,0.72083934,138.77,138.73,24.44227468]
[1767913454133,0.72083934,138.74,138.71,0.1]
[1767913454307,0.72083934,138.74,138.73,3.32649417]
[1767913454733,0.72083934,138.74,138.72,10.53488093]
[1767913455027,0.72083934,138.74,138.72,7.20838676]
[1767913455231,0.72083934,138.74,138.71,23.79555193]
[1767913455430,0.72083934,138.74,138.71,0.1]
[1767913455615,0.72083934,138.74,138.71,7.30925127]
[1767913456317,0.72083934,138.74,138.71,10.63574544]
[1767913457029,0.72083934,138.73,138.71,0.1]
[1767913457734,0.72083934,138.71,138.68,0.1]
[1767913457917,0.72083934,138.71,138.68,7.31082764]
[1767913458624,0.72083934,138.74,138.69,3.9822544]
[1767913458830,0.72083934,138.74,138.7,11.19205288]
[1767913459425,7.92857182,138.74,138.7,11.19205288]
[1767913459628,0.72083934,138.73,138.7,0.65576023]
[1767913460621,0.72083934,138.73,138.69,7.21016933]
[1767913460822,0.72083934,138.73,138.68,17.2422544]
[1767913460823,0.72083934,138.72,138.68,4.0822544]
[1767913461023,0.72083934,138.71,138.68,13.26]
[1767913462030,0.72083934,138.69,138.65,0.75576023]
[1767913462344,0.72083934,138.69,138.66,3.32649417]
[1767913462859,0.72083934,138.69,138.65,11.29443471]
[1767913463323,0.72083934,138.69,138.66,3.32649417]
[1767913464242,0.72083934,138.7,138.67,3.32649417]
[1767913464633,0.72083934,138.7,138.66,0.65576023]
[1767913464942,0.72083934,138.7,138.67,3.32649417]
[1767913465933,0.72083934,138.7,138.66,7.86713496]
[1767913466131,0.72083934,138.7,138.66,11.19362913]
[1767913467038,0.72083934,138.69,138.66,3.32649417]
[1767913467233,0.72083934,138.7,138.66,7.86761718]
[1767913467432,0.72083934,138.7,138.66,11.19411135]
[1767913467634,0.72083934,138.7,138.66,7.86761718]
[1767913467935,0.72083934,138.7,138.66,11.19411135]
[1767913468337,0.72083934,138.7,138.67,3.9822544]
[1767913469252,0.72083934,138.69,138.66,10.53835112]
[1767913470432,7.93117314,138.69,138.66,3.32649417]
[1767913470752,0.72083934,138.69,138.66,3.32649417]
[1767913471050,0.72083934,138.69,138.65,24.45456894]
[1767913471253,0.72083934,138.68,138.65,24.45456894]
[1767913471554,0.72083934,138.68,138.65,10.63878419]
[1767913473132,0.66391969,138.69,138.65,11.32902689]
[1767913474352,7.87437176,138.69,138.65,11.32902689]
[1767913475968,7.87355832,138.71,138.67,4.01673687]
[1767913476135,7.87355832,138.71,138.68,3.32649417]
[1767913476659,0.66391969,138.74,138.68,4.01673687]
[1767913476969,7.87126285,138.75,138.71,4.01673687]
[1767913477257,0.66391969,138.75,138.73,3.32649417]
[1767913477461,0.66391969,138.75,138.71,13.16]
[1767913477462,0.66391969,138.75,138.74,3.32649417]
[1767913477870,0.66391969,138.75,138.73,3.32649417]
[1767913478891,7.77075607,138.76,138.73,3.32649417]
[1767913479463,7.77075607,138.76,138.73,4.01673687]
[1767913479674,8.05464221,138.77,138.74,3.32649417]
[1767913479987,0.099,138.76,138.74,3.32649417]
[1767913480167,0.099,138.76,138.73,4.01673687]
[1767913481603,8.05464221,138.77,138.74,3.32649417]
[1767913482084,8.05464221,138.77,138.72,7.20866823]
[1767913482085,0.099,138.76,138.72,4.01673687]
[1767913487005,3.42549417,138.76,138.71,3.32649417]
[1767913487201,0.1036027,138.74,138.7,4.01673687]
[1767913490613,0.55471382,138.73,138.69,24.38670187]
[1767913491616,7.77173112,138.74,138.7,0.6902427]
[1767913494597,0.099,138.73,138.7,0.6902427]
[1767913499915,0.38332314,138.73,138.69,4.01673687]
[1767913500115,0.38332314,138.73,138.7,0.6902427]
[1767913500318,0.099,138.73,138.7,0.6902427]
[1767913502333,7.77137009,138.75,138.71,0.6902427]
[1767913503030,7.20727526,138.75,138.72,0.7012943]
[1767913503211,18.0147442,138.78,138.74,0.7012943]
[1767913503212,0.1036027,138.78,138.74,0.7012943]
[1767913503402,0.38792584,138.78,138.74,0.6412943]
[1767913503615,0.1036027,138.78,138.74,0.6412943]
[1767913503824,25.84038891,138.8,138.75,3.32649417]
[1767913504126,0.38332314,138.79,138.75,3.32649417]
[1767913504325,7.58865818,138.79,138.75,3.32649417]
[1767913504621,16.48649417,138.81,138.76,3.32649417]
[1767913504622,20.98825143,138.81,138.76,3.32649417]
[1767913504919,7.30256228,138.83,138.78,3.32649417]
[1767913505294,7.30256228,138.83,138.78,4.02778847]
[1767913507021,7.30256228,138.83,138.78,0.7012943]
[1767913507238,10.62905645,138.83,138.78,0.7012943]
[1767913507542,10.62905645,138.83,138.78,7.90690303]
[1767913507724,8.02665233,138.84,138.8,0.7012943]
[1767913507909,8.02665233,138.84,138.8,0.61392808]
[1767913508117,0.2,138.84,138.8,10.53105333]
[1767913508418,0.2,138.84,138.81,3.32649417]
[1767913508609,0.70516305,138.83,138.75,18.01707023]
[1767913508809,0.10506163,138.82,138.78,7.20532676]
[1767913509223,0.10506163,138.82,138.78,10.53182093]
[1767913509809,0.10506163,138.82,138.78,11.23311523]
[1767913511028,3.42549417,138.83,138.79,0.7012943]
[1767913511324,0.91128591,138.84,138.8,4.02778847]
[1767913511623,0.2,138.84,138.81,0.7012943]
[1767913511939,0.28432314,138.87,138.82,3.32649417]
[1767913511940,0.72233342,138.87,138.82,3.32649417]
[1767913512233,0.68310535,138.85,138.81,7.20386238]
[1767913512428,13.16,138.88,138.82,7.20356135]
[1767913512611,0.68310535,138.88,138.84,2.12648199]
[1767913512813,0.68310535,138.88,138.84,2.06987984]
[1767913513231,0.2,138.89,138.85,2.12648199]
[1767913513736,7.40011141,138.89,138.85,2.81968942]
[1767913514117,0.67984636,138.88,138.83,0.69320743]
[1767913514309,0.36043252,138.87,138.83,21.05595734]
[1767913514826,0.36043252,138.87,138.84,7.20240995]
[1767913516208,2.80958734,138.88,138.84,7.89561738]
[1767913516506,0.68310535,138.88,138.84,7.89561738]
[1767913517114,0.68310535,138.88,138.84,7.8356174]
[1767913519251,0.35720612,138.87,138.82,7.89673238]
[1767913519548,0.68310535,138.86,138.82,7.89646231]
[1767913519729,0.68310535,138.86,138.83,7.20302933]
[1767913520309,0.68310535,138.86,138.82,10.02310057]
[1767913520530,0.68310535,138.86,138.82,9.32989314]
[1767913522223,0.68310535,138.86,138.82,10.02310057]
[1767913522427,0.64152926,138.88,138.84,0.69320743]
[1767913522631,0.64152926,138.88,138.84,2.81968942]
[1767913522937,0.64152926,138.88,138.84,0.69320743]
[1767913523621,0.64152926,138.88,138.84,0.63320744]
[1767913524628,0.35720612,138.88,138.84,7.83561971]
[1767913524825,0.64152926,138.88,138.84,7.83561971]